[Event "Svetozar Gligoric Masters 2022"]
[Site "Belgrade"]
[Date "2022.07.21"]
[Round "6.20"]
[White "Srija, Seshadri"]
[Black "Damjanovic, Vuk"]
[Result "1-0"]
[ECO "C41"]
[WhiteElo "2208"]
[BlackElo "2393"]
[Annotator "TA"]
[PlyCount "103"]
[EventDate "2022.07.18"]
[EventCountry "SRB"]
[SourceTitle "playchess.com"]
[Source "ChessBase"]
[SourceQuality "1"]
[TimeControl "40/5400+30:900+30"]

{[%evp 10,103,41,30,35,35,27,-33,-38,-50,-50,-62,-61,-68,-68,-119,-121,-105,-59,-96,-71,-102,-52,-52,-58,-56,-50,-50,-19,-18,0,0,0,0,0,0,0,0,0,0,198,203,352,339,339,354,354,354,354,354,338,342,450,450,461,437,535,525,535,540,870,787,29990,1239,1108,1030,1220,1322,29966,29967,29966,29967,29964,29968,29968,29969,29977,29978,29980,29977,29977,29977,29978,29979,29979,29980,29980,29981,29980,29981,29981,29981,29986,29987,29986,29987]} 1. e4 d6 2. d4 Nf6 3. Nc3 e5 4. Nf3 Nbd7 5. Bc4 Be7 6. a4 {[%cal Ba2a4,Ba4a5][%mdl 32]} c6 {C41: Philidor Defence.} 7. a5 O-O 8. dxe5 (8. O-O $11) 8... dxe5 $15 {Black is slightly better.} ({Don't play} 8... Nxe5 9. Be2 $11) 9. O-O {[#]} Bb4 $146 ({Predecessor:} 9... Rb8 10. Qe2 b5 11. axb6 axb6 12. Be3 Qc7 13. Nh4 Nc5 14. Bxc5 Bxc5 15. Nf5 g6 16. Qd2 {½-½ (26) Richtrova,E (2183)-Marsalek,Z (2198) Pardubice 2020}) 10. Qe2 Bxa5 11. Rd1 Qc7 12. Bg5 (12. Bd2 $15) 12... b5 $17 13. Ba2 Bb4 ({Black should try} 13... h6 $17 14. Bd2 Bb6) 14. Nh4 {[%cal Bf3h4,Bh4g6,Bg6f8][%mdl 32]} h6 15. Rxd7 Qxd7 ({Of course not} 15... Nxd7 $6 16. Qh5 Nc5 17. Bxh6 $11) (15... Bxd7 $17 16. Bxf6 Bxc3 17. bxc3 Qd6) 16. Bxf6 $15 {[%cal Oh4f5] [#] Threatens to win with Nf5!} Qd6 $1 (16... gxf6 $2 17. Nf5 Kh7 18. Qe3 Qxf5 19. exf5 Bxc3 20. Qxc3 $18) 17. Bxe5 Qxe5 18. Ng6 $1 Qc5 19. Nxf8 Bxc3 20. Qf3 $1 Bf6 {This bishop pair is nice.} 21. e5 Qxe5 22. Qxc6 $40 {[%mdl 128] White is up to no good.} Qxb2 23. Re1 {Chess con chili.} Qxa2 24. Qxa8 Qa5 $2 {White leaves nothing to chance now.} (24... Qxc2 $11 {and Black is okay.} 25. Nd7 Bd4 26. Re8+ Kh7 27. Nf8+ Kh8 28. Ng6+ Kh7 29. Nf8+ Kh8 30. Ng6+ Kh7 31. Nf8+) 25. Qe4 $18 {White threatens Qh7+ and mate.} g5 {[#]} (25... Bf5 {is a better defense.} 26. Qe8 Qd8) 26. Qh7+ $1 Kxf8 {[%cal Ra5e1]} 27. Qxh6+ Bg7 {[%cal Ra5e1]} 28. Qd6+ Kg8 {[%cal Ra5e1]} 29. Re8+ Kh7 {( -> ...Qa1+)} 30. Qd3+ f5 {Hoping for ...Qa1+.} 31. Rxc8 {[%mdl 4096] Endgame KQR-KQB} Qe1+ 32. Qf1 Qe6 33. Rc7 Qb6 34. Rd7 Kg6 35. Qd3 {aiming for g4.} Bf6 36. g4 (36. Qd5 $142 g4 37. Qg8+ Bg7 38. Rxg7+ Kf6 39. Rd7 Qc5 40. Qd8+ Kg6 41. Qe8+ Kf6 42. Rf7+ Kg5 43. Rg7+ Kf4 44. Qe2 Qc3 45. g3+ Qxg3+ 46. fxg3#) 36... Qe6 37. Rxa7 Qe1+ 38. Kg2 Qe5 39. gxf5+ {White mates.} Qxf5 40. Rb7 Qxd3 41. cxd3 {KR-KB} b4 42. Rxb4 Kf5 43. Kf3 Be5 44. h3 Bc3 45. Rb5+ Kg6 46. Kg4 Bd2 47. Rb6+ Kf7 48. Kf5 Ke7 49. Rg6 Kf7 50. Rxg5 Bxg5 51. Kxg5 Ke6 52. Kg6 {Weighted Error Value: White=0.07 (flawless) /Black=0.58} 1-0

[Event "Svetozar Gligoric Masters 2022"]
[Site "Belgrade"]
[Date "2022.07.21"]
[Round "6.21"]
[White "Brilej, Jaka"]
[Black "Arias Gaviria, Mario Alexis"]
[Result "0-1"]
[ECO "C22"]
[WhiteElo "2364"]
[BlackElo "2231"]
[Annotator "TA"]
[PlyCount "100"]
[EventDate "2022.07.18"]
[EventCountry "SRB"]
[SourceTitle "playchess.com"]
[Source "ChessBase"]
[SourceQuality "1"]
[TimeControl "40/5400+30:900+30"]

{[%evp 9,100,-20,-18,-23,-15,-12,0,3,0,0,0,-4,5,0,0,-4,-3,-16,-30,-28,-36,-61,-62,-58,-51,-70,-87,-273,-123,-105,-103,-98,-103,-190,-204,-176,-188,-376,-378,-363,-363,-445,-405,-407,-382,-394,-335,-494,-386,-366,-372,-524,-500,-681,-649,-732,-724,-670,-713,-654,-690,-675,-671,-710,-693,-1015,-1033,-989,-1030,-1035,-1033,-1025,-1004,-822,-885,-1144,-1307,-1992,-1713,-1710,-1775,-1905,-1760,-1975,-1920,-1994,-1941,-1853,-1871,-2212,-2108,-29980,-29981]} 1. e4 e5 2. d4 exd4 3. Qxd4 Nc6 4. Qd3 Nf6 5. Nc3 Bc5 6. Bf4 {C22: Centre Game.} d6 7. Qd2 O-O {[%cal Of6e4]} 8. O-O-O {[#] The position is equal.} a6 $146 {[%cal Ba7a6,Ba6a5,Ba5a4,Ba4a3][%mdl 32]} ({Predecessor:} 8... Be6 9. f3 Nd7 10. h4 Nce5 11. Nh3 a6 12. Be3 b5 13. Nf4 Bxe3 14. Qxe3 Nb6 {1-0 (28) Mamedyarov,S (2770)-Adams,M (2716) Tornelo INT 2021}) 9. f3 b5 {[%cal Bb7b5,Bb5b4][%mdl 32]} 10. Kb1 Bd7 11. h4 b4 12. Nce2 a5 13. h5 h6 14. g4 Nh7 {Inhibits g5.} 15. Be3 Bxe3 16. Qxe3 a4 17. Nd4 Ne5 18. Bb5 $2 {[#]} (18. Nge2 $17 {might work better.}) 18... c6 (18... c5 $1 $19 {[%cal Rc5d4]} 19. Bxd7 cxd4 20. Qxd4 Nxd7 21. Qxb4 a3) 19. Be2 $17 a3 20. b3 c5 21. Nb5 (21. Nf5 $17 Bxf5 22. gxf5) 21... Bxb5 $19 22. Bxb5 Qf6 23. Kc1 $2 (23. Qc1) 23... Rab8 24. Be2 Nc6 {Threatens to win with ...Qb2+.} 25. Bd3 Qb2+ 26. Kd2 Qxa2 27. Ne2 Qb2 {White must now prevent ...a2.} 28. f4 (28. Ke1 $142) 28... Nd4 29. Nxd4 cxd4 {Dancing on a razor blade.} 30. Qg3 (30. Qf3 $142) 30... Rfe8 {aiming for ...Nf6.} 31. Qf3 Nf6 {Strongly threatening ...Qc3+.} 32. Rhe1 Qc3+ 33. Ke2 {[#]} Nxe4 $1 {[%mdl 512]} 34. Bxe4 d5 {[%mdl 64] Pin} 35. Qxc3 dxc3 36. Kf3 dxe4+ 37. Rxe4 Rxe4 38. Kxe4 {[%mdl 4096] Endgame KR-KR} Re8+ 39. Kf3 f6 40. Kf2 Kf7 41. Kf3 Re7 42. Kf2 Ke8 43. Rd4 Ra7 {And now ...a2 would win.} 44. Rd1 Rd7 45. Rc1 Rd2+ 46. Ke3 Ke7 47. Ke4 Ke6 48. Kf3 Kd5 {...a2 is the strong threat.} 49. Ke3 a2 50. f5 {[#]} Rxc2 $3 {[%mdl 512] Weighted Error Value: White=0.86/Black=0.16 (very precise)} 0-1

[Event "Svetozar Gligoric Masters 2022"]
[Site "Belgrade"]
[Date "2022.07.21"]
[Round "6.22"]
[White "Granovskiy, Alexandr"]
[Black "Tisaj, Domen"]
[Result "1/2-1/2"]
[ECO "D35"]
[WhiteElo "2177"]
[BlackElo "2355"]
[Annotator "TA"]
[PlyCount "140"]
[EventDate "2022.07.18"]
[EventCountry "SRB"]
[SourceTitle "playchess.com"]
[Source "ChessBase"]
[SourceQuality "1"]
[TimeControl "40/5400+30:900+30"]

{[%evp 12,140,12,17,29,33,34,18,12,12,12,0,-5,-6,0,-8,-5,-48,-30,-40,-52,-32,-20,-20,-18,-56,-62,-63,-31,-37,-27,-37,-39,-50,-14,-19,-10,-18,-16,-16,0,0,35,35,35,34,34,34,22,30,31,27,30,14,12,8,8,0,0,0,0,0,0,0,0,0,0,0,0,0,0,0,0,0,0,0,0,0,0,0,0,0,0,0,0,0,0,0,0,0,0,0,0,0,0,0,0,0,0,0,0,0,0,0,0,0,0,0,0,0,29971,29972,29971,0,0,0,0,0,0,0,0,0,0,0,0,0,0,0,0,0,0]} 1. d4 Nf6 2. c4 e6 3. Nc3 d5 4. cxd5 exd5 5. Bg5 c6 6. e3 h6 7. Bh4 Be6 {D35: Queen's Gambit Declined: Exchange Variation.} 8. Bd3 Nbd7 9. Qc2 g5 10. Bg3 Nh5 11. Nge2 Nxg3 12. Nxg3 h5 13. Nf5 Qf6 14. O-O-O O-O-O 15. h3 {[#]} Kb8 $146 ({Predecessor:} 15... h4 16. Kb1 Kb8 17. Rhf1 Rg8 18. g4 Nb6 19. f4 Bxf5 20. Bxf5 Nc4 21. Qd3 Bd6 {1-0 (47) Salem,A (2690)-Mastrovasilis,D (2627) Warsaw 2021}) 16. g4 Nb6 17. Kb1 Bb4 18. f3 Bxf5 19. Bxf5 Bxc3 20. Qxc3 hxg4 21. Bxg4 Rde8 22. Rhe1 Nc4 23. e4 Qf4 24. Qc1 Qxc1+ 25. Kxc1 Kc7 26. e5 Rh4 27. b3 Nb6 28. f4 gxf4 29. Rf1 Re7 30. Rxf4 Nd7 31. Rdf1 Rh7 32. Bf5 Rh6 33. Bxd7 Kxd7 $11 {[%mdl 4096] Endgame KRR-KRR} 34. R1f3 Rh7 35. Kd2 Ke8 36. Rg4 Kf8 37. h4 Re6 38. b4 Reh6 39. Rff4 Ke7 40. Ke3 f6 41. exf6+ Rxf6 42. Kf2 Rfh6 43. a4 Kd6 44. a5 b6 45. axb6 axb6 46. Kg3 Kc7 47. Rg5 Kb7 48. b5 Rd6 49. h5 cxb5 50. Rg6 Rdd7 51. Rff6 Ka6 52. Rxb6+ Ka5 53. h6 Kb4 54. Rgc6 Rb7 55. Rxb7 Rxb7 {KR-KR} 56. Kf4 {[#] Black must now prevent Kf5.} Ka3 57. Ra6+ Kb2 58. Rg6 b4 59. Rg7 Rb6 60. Kg5 {White wants to mate with h7.} Rb8 $2 {[%mdl 8192]} (60... Rxh6 $11 61. Kxh6 Kc3) 61. h7 Rh8 {[#]} 62. Kg6 $2 (62. Rc7 $1 {mates} Rxh7 63. Rxh7 Kc3 64. Rb7 Kxd4 65. Kf4 Kc3 66. Ke3 d4+ 67. Ke2) 62... Kc3 {The position is equal.} 63. Rb7 Kxd4 64. Rxb4+ Kc3 65. Rb7 d4 66. Rc7+ Kb2 67. Rd7 Kc3 68. Kg7 Rxh7+ 69. Kxh7 d3 70. Rxd3+ Kxd3 {Weighted Error Value: White=0.04 (flawless) /Black=0.12 (very precise)} 1/2-1/2

[Event "Svetozar Gligoric Masters 2022"]
[Site "Belgrade"]
[Date "2022.07.21"]
[Round "6.23"]
[White "Stamatiou, Rodolfos"]
[Black "Spasic, Petar"]
[Result "1-0"]
[ECO "B90"]
[WhiteElo "2189"]
[BlackElo "2336"]
[Annotator "TA"]
[PlyCount "65"]
[EventDate "2022.07.18"]
[EventCountry "SRB"]
[SourceTitle "playchess.com"]
[Source "ChessBase"]
[SourceQuality "1"]
[TimeControl "40/5400+30:900+30"]

{[%evp 13,65,11,30,8,39,27,93,89,87,96,119,127,160,166,218,210,219,206,256,260,519,439,427,400,529,514,790,783,800,787,908,899,910,880,1360,1347,1443,1455,1439,1410,6821,1495,2265,2216,2316,2181,29992,29986,29992,29993,29996,29987,29997,29998]} 1. e4 c5 2. Nf3 d6 3. d4 cxd4 4. Nxd4 Nf6 5. Nc3 a6 6. Be3 e5 7. Nb3 Be6 8. h3 {B90: Sicilian Najdorf: Unusual White 6th moves, 6 Be3 Ng4 and 6 Be3 e5.} b5 9. a4 {[#]} bxa4 $146 (9... b4 $11 {remains equal.} 10. Nd5 Nbd7) ({Predecessor:} 9... b4 10. Nd5 Bxd5 11. exd5 Nbd7 12. Qd2 Nb6 13. Qxb4 Nfxd5 14. Qe4 Nxe3 15. fxe3 Be7 {0-1 (37) Tanenbaum,Z (2137)-Nurmanova,A (2008) Chess.com INT 2021}) 10. Rxa4 $16 {White is better.} Be7 11. Bb5+ Bd7 12. Bxd7+ Nbxd7 13. Qd3 {White is much more active. The black rooks are badly placed.} a5 (13... O-O $142 14. O-O (14. Rxa6 Rxa6 15. Qxa6 Qc8 $16) 14... Qc7) 14. O-O $18 O-O 15. Rfa1 Nh5 {[%cal Bf6h5,Bh5f4,Bf4e2][%mdl 32]} 16. Nxa5 {Threatens to win with Nc6.} Nb8 {Inhibits Nc6.} (16... Nf4 {was called for.} 17. Qf1 Qc8) 17. Qd5 Ra6 18. b4 {[%cal Bb2b4,Bb4b5][%mdl 32]} Nf4 19. Qb7 Qc8 (19... d5 $142 20. Nxd5 Nxd5) 20. Qxe7 Qxc3 21. b5 Ne2+ 22. Kh2 Ra8 23. Qb7 f5 24. Qxa8 f4 25. Qd5+ Kh8 26. Qxd6 {[%cal Rd6f8]} Nd7 27. Bd2 Qc8 28. Nc6 Nb6 29. Ra7 {[%cal Oa7g7] Strongly threatening Rxg7!} f3 30. Qxe5 {[%csl Ga7][%cal Re5g7] White mates.} Rg8 31. Bh6 Nd7 {[#]} 32. Bxg7+ $1 Rxg7 {[#]} 33. Rxd7 $1 {White took control after the opening.  Weighted Error Value: White=0.09 (flawless) /Black=0.84} 1-0

[Event "Svetozar Gligoric Masters 2022"]
[Site "Belgrade"]
[Date "2022.07.21"]
[Round "6.24"]
[White "Drazic, Sinisa"]
[Black "Serikbay, Assel"]
[Result "0-1"]
[ECO "B50"]
[WhiteElo "2293"]
[BlackElo "2227"]
[Annotator "RC"]
[PlyCount "106"]
[EventDate "2022.07.18"]
[EventCountry "SRB"]
[SourceTitle "playchess.com"]
[Source "ChessBase"]
[SourceQuality "1"]
[TimeControl "40/5400+30:900+30"]

1. e4 c5 2. Nf3 d6 3. c3 Nf6 4. Be2 Nc6 5. d4 cxd4 6. cxd4 Nxe4 7. d5 Qa5+ 8. Nc3 Nb8 9. O-O Nxc3 10. bxc3 Nd7 11. Be3 Nf6 12. Qb3 Qc7 13. Bd4 g6 14. Bb5+ Bd7 15. Bxf6 exf6 16. Rfe1+ Be7 17. Re4 f5 18. Re3 Kf8 19. Rb1 Rb8 20. Qa4 Bxb5 21. Qd4 Rg8 22. Rxb5 Qd7 23. Rb1 Bd8 24. Qxa7 Qc7 25. Qd4 Qc5 26. Qxc5 dxc5 27. Ne5 Kg7 28. Nd7 Ra8 29. Rxb7 Rxa2 30. g3 Rd2 31. c4 Bg5 32. Re1 Ra8 33. Rb3 Raa2 34. Rf3 Rac2 35. h4 Bd8 36. Re8 Ba5 37. Ra8 Bb4 38. Ne5 Bc3 39. Nd3 Bf6 40. Nxc5 Rxc4 41. Rc8 Rdc2 42. Ne6+ fxe6 43. Rxc4 Rxc4 44. dxe6 Re4 45. Rb3 Rxe6 46. Kg2 Re2 47. Rb7+ Kh6 48. Rd7 Bc3 49. Rd3 Rc2 50. Kf1 Bb4 51. Rf3 Bc5 52. Kg2 Kh5 53. Rf4 Rxf2+ 0-1

[Event "Svetozar Gligoric Masters 2022"]
[Site "Belgrade"]
[Date "2022.07.21"]
[Round "7.1"]
[White "Koustav Chatterjee"]
[Black "Predke, Alexandr"]
[Result "0-1"]
[ECO "E06"]
[WhiteElo "2485"]
[BlackElo "2688"]
[Annotator "TA"]
[PlyCount "70"]
[EventDate "2022.07.18"]
[EventCountry "SRB"]
[SourceTitle "playchess.com"]
[Source "ChessBase"]
[SourceQuality "1"]
[TimeControl "40/5400+30:900+30"]

{[%evp 14,70,24,13,11,20,21,-8,-11,11,19,-27,-18,-17,22,22,28,-1,30,52,47,-21,-23,-38,-53,-76,-56,-84,-59,-64,-58,-68,-56,-54,-68,-139,-118,-135,-146,-408,-409,-420,-418,-421,-402,-422,-388,-349,-292,-593,-568,-566,-571,-536,-559,-548,-525,-583,-574]} 1. d4 Nf6 2. c4 e6 3. Nf3 d5 4. g3 Be7 5. Bg2 O-O 6. O-O c6 7. b3 b6 {[%cal Bb7b6,Bb6b5][%mdl 32] is now debated instead of 7...Nbd7.} 8. Nc3 a5 {E06: Closed Catalan: Early deviations.} 9. Nd2 b5 {[#]} 10. c5 $146 ({Predecessor:} 10. cxb5 cxb5 11. Nxb5 Qb6 12. Nc3 Qxd4 13. Bb2 Qb6 14. e4 Ba6 15. Re1 dxe4 16. Ndxe4 {1-0 (39) L'Ami,E (2622)-Jumabayev,R (2631) Wijk aan Zee 2022}) 10... e5 {The position is equal.} 11. dxe5 Nfd7 {[%cal Bf6d7,Bd7c5,Bc5b3][%mdl 32]} 12. Nf3 (12. Bb2 $142) 12... Nxc5 $11 13. a3 f6 14. Bb2 Kh8 15. Rc1 a4 16. b4 Nb3 17. Rc2 (17. e4 $1 $14) 17... Bg4 {[%cal Bc8g4,Bg4f5,Bf5c2][%mdl 32]} 18. Nb1 Bf5 19. Rc3 fxe5 ({Don't do} 19... d4 20. Rxb3 axb3 21. Nxd4 fxe5 22. Nxf5 Qxd1 23. Rxd1 Rxf5 24. Nd2 $14) 20. Nbd2 d4 {Black is more active.} 21. Rxb3 axb3 22. Nxe5 Bc2 23. Qc1 Ra7 24. Ndf3 (24. Nd3 $15) 24... c5 $17 25. bxc5 Bxc5 {Hoping for ...Qd6.} 26. Rd1 $2 {[%mdl 8192] This move loses the game for White.} (26. Nd3 $17 Bb6 27. Qd2) 26... Qe7 $19 {[%cal Rc5a3]} 27. Rxd4 Bxa3 28. Bf1 Bxb2 29. Qxb2 Qc5 {[#] Strongly threatening ...Ra2.} 30. Nd3 Qc7 31. Nd2 $2 (31. Nc1 Nc6 32. Rd5) 31... Ra2 {Black is clearly winning.} 32. Qc1 b2 33. Nxb2 Qc3 {[%csl LRb2,LRd4]} ({Less strong is} 33... Qf7 34. Rf4 Bf5 35. e4 $18) 34. Nf3 Rxb2 35. Qf4 {[%cal Rf4f8] [#]} Qc5 {Weighted Error Value: White=0.37/Black=0.06 (flawless)} 0-1

[Event "Svetozar Gligoric Masters 2022"]
[Site "Belgrade"]
[Date "2022.07.21"]
[Round "7.2"]
[White "Samant Aditya S"]
[Black "Rohith Krishna S"]
[Result "1/2-1/2"]
[ECO "C97"]
[WhiteElo "2431"]
[BlackElo "2326"]
[Annotator "TA"]
[PlyCount "92"]
[EventDate "2022.07.18"]
[EventCountry "SRB"]
[SourceTitle "playchess.com"]
[Source "ChessBase"]
[SourceQuality "1"]
[TimeControl "40/5400+30:900+30"]

{[%evp 24,92,52,26,42,37,39,60,48,45,61,39,29,46,39,25,33,25,27,33,33,33,33,30,103,143,135,129,187,198,182,222,204,185,307,307,297,292,277,233,233,233,233,193,360,294,399,381,370,304,376,373,381,380,491,493,473,340,339,339,339,349,295,0,0,0,0,0,0,0,0]} 1. e4 e5 2. Nf3 Nc6 3. Bb5 a6 4. Ba4 Nf6 5. O-O Be7 6. Re1 b5 7. Bb3 d6 8. c3 O-O 9. h3 Na5 {[%cal Bc6a5,Ba5b7,Bb7c5][%mdl 32]} 10. Bc2 c5 11. d4 Qc7 12. Nbd2 Rd8 13. d5 c4 {C97: Closed Ruy Lopez: Chigorin Defence: 11 d4 Qc7, sidelines.} 14. Nb1 {[#]} Nb7 $146 ({Predecessor:} 14... Bd7 15. b4 cxb3 16. axb3 h6 17. Bd3 Rdc8 18. Be3 Qd8 19. Re2 Nb7 20. b4 a5 21. Rb2 {1-0 (57) Wosch,A (2251)-Szabo,M (2409) LSS email 2014}) 15. b4 cxb3 {White is slightly better.} 16. axb3 Nd7 17. Be3 {White is more active.} Nb6 $1 18. Na3 {[%cal Oa3b5]} Nc5 19. Qe2 Bd7 20. Rec1 Rdc8 21. Nd2 Qd8 {[%cal Of7f5]} 22. b4 Nca4 23. c4 {[%cal Bc3c4,Bc4c5,Bc5c6][%mdl 32]} Rcb8 (23... Nb2 $11) 24. Bxa4 $16 Nxa4 25. c5 $36 {[%mdl 2048] White has strong initiative.} Qf8 (25... dxc5 $16 26. bxc5 b4) 26. c6 $18 Be8 27. Nab1 f5 {[#]} 28. f3 $1 h5 (28... Bf7 $142 29. Nb3 Bf6) 29. Nc3 Nxc3 30. Rxc3 Bf7 31. Rca3 Qc8 32. Nb1 {Black must now prevent Qa2.} Bd8 33. Nc3 Bg6 $2 (33... f4) 34. Bf2 Bc7 35. exf5 Bxf5 36. Ne4 Bg6 37. Qd2 Kh8 38. Kh1 Bf7 39. Bh4 Qg8 40. Rxa6 Rxa6 41. Rxa6 {[#] Strongly threatening Ra7.} Bxd5 42. Ra7 Rc8 43. Nf6 gxf6 $11 {The position is equal.} 44. Rxc7 Rxc7 45. Qh6+ Qh7 46. Qf8+ Qg8 {Weighted Error Value: White=0.20 (precise) /Black=0.25 (precise)} 1/2-1/2

[Event "Svetozar Gligoric Masters 2022"]
[Site "Belgrade"]
[Date "2022.07.21"]
[Round "7.3"]
[White "Gagunashvili, Merab"]
[Black "Neelash Saha"]
[Result "0-1"]
[ECO "D37"]
[WhiteElo "2569"]
[BlackElo "2446"]
[Annotator "TA"]
[PlyCount "94"]
[EventDate "2022.07.18"]
[EventCountry "SRB"]
[SourceTitle "playchess.com"]
[Source "ChessBase"]
[SourceQuality "1"]
[TimeControl "40/5400+30:900+30"]

{[%evp 12,94,16,15,18,0,0,0,0,0,0,-1,0,0,0,0,0,0,11,8,7,6,6,6,6,7,8,7,7,7,8,8,10,0,0,-66,-21,-18,-14,-136,-136,-208,-208,-202,-189,-198,-201,-181,-168,-213,-220,-220,-195,-220,-220,-441,-415,-416,-410,-440,-447,-439,-439,-406,-411,-454,-420,-639,-625,-588,-615,-29984,-29985,-29984,-29974,-29972,-29973,-29988,-29989,-29989,-29990,-29995,-29996,-29997,-29998]} 1. d4 d5 2. c4 e6 3. Nf3 Nf6 4. Nc3 Be7 5. Bf4 O-O 6. e3 Nbd7 7. Be2 dxc4 {D37: Queen's Gambit Declined: 5 Bf4.} 8. Bxc4 a6 9. a4 {Inhibits b5.} c5 {The position is equal.} 10. dxc5 Bxc5 {[#]} 11. Bd6 $146 ({Predecessor:} 11. O-O b6 12. Qd2 Bb7 13. Rfd1 Qe7 14. Ne5 Nxe5 15. Bxe5 Rfd8 16. Qe2 a5 17. h3 h6 18. Qc2 Rxd1+ 19. Rxd1 {½-½ (19) Korobov,A (2656)-Jakovenko,D (2712) Poikovsky 2016}) 11... Bxd6 12. Qxd6 b6 13. O-O Bb7 14. Rfd1 Rc8 15. Be2 Nc5 16. Ne5 Nd5 17. Qxd8 (17. Nc4 {with more complications.} Qxd6 18. Nxd6 Nxc3 19. bxc3 Rb8 20. a5) 17... Rfxd8 18. Nxd5 Rxd5 19. Rxd5 Bxd5 20. b4 Nb3 21. Rd1 (21. Bxa6 Ra8 22. Ra3 Rxa6 $17) 21... a5 22. Nd7 Rc2 $1 23. Bf3 (23. Bd3 Rc1 24. Rxc1 Nxc1 $15) (23. bxa5 $11 bxa5 24. Bd3) 23... Bxf3 (23... axb4 24. Nxb6 Nd2 25. Nxd5 (25. Bxd5 $2 exd5 26. a5 b3 $19) 25... exd5 26. a5 $11) (23... Nd2 $5 {[%cal Ra5b4]} 24. bxa5 (24. Bxd5 axb4 25. Bc4 Nxc4 $17) 24... Bxf3 25. gxf3 bxa5 $15) 24. gxf3 axb4 {aiming for ...Rd2.} 25. Nxb6 $15 {[%mdl 4096] Endgame KRN-KRN. Black keeps a firm grip on the game.} (25. Rd6 $1 $11 {was the only way to keep the balance.} f6 26. Rxb6) 25... Nd2 $17 26. a5 {[#]} (26. Nc4 $17 {was worth a try.} Nxf3+ 27. Kg2 Nh4+ 28. Kg3 Nf5+ 29. Kf3) 26... g5 $1 $19 ({Stronger than} 26... Nxf3+ 27. Kg2 Nh4+ 28. Kg3 $17) 27. a6 {[#]} Ra2 {Prevents Ra1.} ({Weaker is} 27... Nxf3+ 28. Kg2 Nh4+ 29. Kh3 $17) 28. a7 Nxf3+ 29. Kg2 Nh4+ 30. Kg3 Rxa7 31. Rb1 f5 ({Inferior is} 31... Nf5+ 32. Kg2) 32. h3 Kg7 {And now ...Rc7 would win.} 33. Rxb4 $2 (33. Nc4 {was the only chance.}) 33... Ra1 {( -> ...Rg1+)} 34. Kh2 {Inhibits Rg1.} Rf1 35. Rb2 e5 36. f4 gxf4 37. exf4 Rxf4 38. Nd5 Rd4 39. Rb7+ (39. Nc7 $142 Kf7 40. Kg3) 39... Kg6 40. Rb6+ Kg5 41. Nf6 Rd2+ {Black mates.} 42. Kg1 Nf3+ 43. Kf1 e4 {[%cal Be5e4,Be4e3][%mdl 32]} 44. Nxh7+ Kf4 45. Nf6 e3 {[%csl Ge3][%cal Rd2f2]} 46. Rb4+ Kg3 {[%csl Gd2][%cal Re3e2]} 47. Nh5+ Kh2 {Weighted Error Value: White=0.45/Black=0.03 (flawless)} 0-1

[Event "Svetozar Gligoric Masters 2022"]
[Site "Belgrade"]
[Date "2022.07.21"]
[Round "7.4"]
[White "Ilamparthi A R"]
[Black "Petrov, Nikita"]
[Result "0-1"]
[ECO "C44"]
[WhiteElo "2153"]
[BlackElo "2558"]
[Annotator "TA"]
[PlyCount "88"]
[EventDate "2022.07.18"]
[EventCountry "SRB"]
[SourceTitle "playchess.com"]
[Source "ChessBase"]
[SourceQuality "1"]
[TimeControl "40/5400+30:900+30"]

{[%evp 10,88,0,0,-4,0,-3,-5,0,0,0,-10,17,-31,0,0,0,0,0,-37,-42,-98,-95,-95,-96,-112,-88,-126,-114,-105,-103,-123,-90,-161,-165,-159,-167,-223,-203,-272,-267,-263,-265,-297,-300,-325,-327,-452,-426,-492,-473,-565,-554,-647,-608,-653,-679,-985,-969,-2516,-2234,-3050,-2404,-29979,-29980,-29982,-29983,-29983,-29984,-29983,-29979,-29987,-29987,-29988,-29989,-29987,-29988,-29991,-29990,-29990,-29991]} 1. e4 e5 2. Nf3 Nc6 3. d3 Nf6 4. g3 d5 5. exd5 Nxd5 6. Bg2 Bg4 {C44: Ponziani Opening and Scotch Gambit.} 7. O-O Qd7 8. Nc3 Nxc3 {The position is equal.} 9. bxc3 O-O-O {[%cal Oe5e4] [#]} 10. Qe2 $146 ({Predecessor:} 10. Be3 Qe6 11. Qc1 f6 12. Qb2 h5 13. h4 g5 14. hxg5 Bxf3 15. Bxf3 h4 16. Qb3 {1-0 (39) Bangiev,K (1539)-Czaeczine,L (1309) Willingen 2020}) 10... h5 {[%cal Oh5h4]} 11. Qe4 (11. Rb1 $11) 11... f6 12. Be3 {[%cal Oe3a7]} Bh3 13. Bxh3 Qxh3 14. Rfb1 {[%cal Ob1b7] Hoping for Rxb7!} Qg4 15. h3 {[#] Black keeps a firm grip on the game.} (15. Nd2 $15) 15... Qxe4 $1 $17 ({Much less strong is} 15... Qxh3 {[#]} 16. Rxb7 $3 {[%mdl 512]} Rd6 17. Rab1 $16) 16. dxe4 Na5 17. Kf1 Nc4 18. Ke2 Ba3 {aiming for ...Bb2.} 19. Rb3 Rd6 {[%cal Bd8d6,Bd6c6,Bc6c4,Bc4a4,Ba4a2,Ba2c2][%mdl 32] Black is more active.} 20. Rab1 b6 21. Ne1 (21. Nd2 $17 Nxd2 22. Bxd2) 21... Rc6 $19 22. Rd1 Be7 23. Rd3 (23. Bd2 $142) 23... Na5 24. Rb5 Rc4 25. f3 Ra4 26. Rbd5 Rxa2 27. f4 Nc4 28. Nf3 Rxc2+ 29. Ke1 Bd6 30. fxe5 fxe5 31. Nh4 a5 32. Nf5 a4 33. Nxd6+ cxd6 34. Rxd6 Nxd6 35. Rxd6 {[%mdl 4096] Endgame KRR-KRB} a3 {( -> ...a2)} 36. Rxb6 a2 {Black mates.} 37. Ra6 Rd8 38. Ra8+ Kd7 39. Ra7+ Ke6 40. Bg5 Rd7 41. Ra8 Rb7 42. Kd1 Rg2 43. Bd2 Rb1+ 44. Kc2 a1=Q {Weighted Error Value: White=0.64/Black=0.04 (flawless)} 0-1